[Event "Titled Tuesday Blitz May 9 Late 2023"]
[White "Tifferet, Shaked"]
[Black "Kostiukov, Alexandr"]
[WhiteFideId "2811529"]
[BlackFideId "14108100"]
[WhiteElo "2142"]
[BlackElo "2202"]
[Result "1-0"]
[Round "02"]
[TimeControl "180+2"]
[Date "2023.05.09"]
[WhiteClock "0:01:33"]
[BlackClock "0:00:03"]

1. Nf3 {[%clk 0:03:00]}  c5 {[%clk 0:02:54]} 2. e4 {[%clk 0:02:58]}  g6 {[%clk 0:02:54]} 3. h4 {[%clk 0:02:56]}  h5 {[%clk 0:02:51]} 4. Bc4 {[%clk 0:02:54]}  Nc6 {[%clk 0:02:48]} 5. Ng5 {[%clk 0:02:52]}  e6 {[%clk 0:02:46]} 6. a3 {[%clk 0:02:41]}  Bg7 {[%clk 0:02:42]} 7. O-O {[%clk 0:02:39]}  Nge7 {[%clk 0:02:39]} 8. d3 {[%clk 0:02:23]}  d5 {[%clk 0:02:37]} 9. Ba2 {[%clk 0:02:21]}  O-O {[%clk 0:02:35]} 10. Nd2 {[%clk 0:02:20]}  f6 {[%clk 0:02:30]} 11. Ngf3 {[%clk 0:02:16]}  e5 {[%clk 0:02:27]} 12. exd5 {[%clk 0:02:10]}  Nxd5 {[%clk 0:02:27]} 13. Ne4 {[%clk 0:02:11]}  b6 {[%clk 0:02:25]} 14. c3 {[%clk 0:02:08]}  Kh8 {[%clk 0:02:08]} 15. d4 {[%clk 0:01:56]}  cxd4 {[%clk 0:01:09]} 16. cxd4 {[%clk 0:01:57]}  f5 {[%clk 0:01:09]} 17. Bg5 {[%clk 0:01:48]}  Qd7 {[%clk 0:00:55]} 18. Nxe5 {[%clk 0:01:46]}  Nxe5 {[%clk 0:00:49]} 19. dxe5 {[%clk 0:01:47]}  Bb7 {[%clk 0:00:03]} 20. Nd6 {[%clk 0:01:33]} 1-0


[Site "https://www.chess.com"]

[Event "Titled Tuesday Blitz May 9 Late 2023"]
[White "Souza, Adwilhans Luciano"]
[Black "Herman, Daniel"]
[WhiteFideId "2101793"]
[BlackFideId "30935008"]
[WhiteElo "2288"]
[BlackElo "1897"]
[Result "1-0"]
[Round "02"]
[TimeControl "180+2"]
[Date "2023.05.09"]
[WhiteClock "0:00:24"]
[BlackClock "0:00:03"]

1. e4 {[%clk 0:03:00]}  g6 {[%clk 0:02:59]} 2. d4 {[%clk 0:03:00]}  Bg7 {[%clk 0:03:00]} 3. Nc3 {[%clk 0:03:00]}  d6 {[%clk 0:03:00]} 4. f4 {[%clk 0:03:00]}  Nf6 {[%clk 0:02:59]} 5. Nf3 {[%clk 0:03:00]}  c5 {[%clk 0:02:54]} 6. Bb5+ {[%clk 0:02:59]}  Nfd7 {[%clk 0:02:47]} 7. dxc5 {[%clk 0:02:57]}  dxc5 {[%clk 0:02:43]} 8. O-O {[%clk 0:02:53]}  O-O {[%clk 0:02:40]} 9. e5 {[%clk 0:02:52]}  a6 {[%clk 0:02:32]} 10. Be2 {[%clk 0:02:49]}  Nc6 {[%clk 0:02:24]} 11. Be3 {[%clk 0:02:46]}  b6 {[%clk 0:02:17]} 12. e6 {[%clk 0:02:38]}  fxe6 {[%clk 0:02:12]} 13. Ng5 {[%clk 0:02:38]}  Nf6 {[%clk 0:02:10]} 14. Bf3 {[%clk 0:02:37]}  Qc7 {[%clk 0:02:03]} 15. Qe2 {[%clk 0:02:26]}  h6 {[%clk 0:01:54]} 16. Nge4 {[%clk 0:02:25]}  Nxe4 {[%clk 0:01:47]} 17. Bxe4 {[%clk 0:02:25]}  Rf6 {[%clk 0:01:22]} 18. a4 {[%clk 0:02:08]}  Bb7 {[%clk 0:01:19]} 19. a5 {[%clk 0:02:05]}  Nxa5 {[%clk 0:01:15]} 20. Bxb7 {[%clk 0:02:01]}  Nxb7 {[%clk 0:01:14]} 21. Rxa6 {[%clk 0:01:59]}  Rxa6 {[%clk 0:01:11]} 22. Qxa6 {[%clk 0:02:00]}  Nd6 {[%clk 0:01:09]} 23. Na4 {[%clk 0:01:45]}  Nf5 {[%clk 0:01:02]} 24. Bc1 {[%clk 0:01:37]}  e5 {[%clk 0:00:54]} 25. fxe5 {[%clk 0:01:31]}  Qxe5 {[%clk 0:00:55]} 26. Nxb6 {[%clk 0:01:27]}  Qd4+ {[%clk 0:00:55]} 27. Kh1 {[%clk 0:01:20]}  Ng3+ {[%clk 0:00:55]} 28. hxg3 {[%clk 0:01:19]}  Rxf1+ {[%clk 0:00:55]} 29. Qxf1 {[%clk 0:01:20]}  Kh7 {[%clk 0:00:49]} 30. Nc4 {[%clk 0:01:18]}  Qg4 {[%clk 0:00:42]} 31. Bf4 {[%clk 0:01:09]}  Qf5 {[%clk 0:00:39]} 32. Qd3 {[%clk 0:01:05]}  Qe6 {[%clk 0:00:37]} 33. Kh2 {[%clk 0:01:00]}  h5 {[%clk 0:00:32]} 34. c3 {[%clk 0:00:59]}  Bf6 {[%clk 0:00:30]} 35. Be3 {[%clk 0:00:55]}  Qc6 {[%clk 0:00:22]} 36. Nd2 {[%clk 0:00:52]}  Qb7 {[%clk 0:00:17]} 37. b3 {[%clk 0:00:50]}  Qc7 {[%clk 0:00:14]} 38. Ne4 {[%clk 0:00:43]}  Be5 {[%clk 0:00:13]} 39. Bxc5 {[%clk 0:00:39]}  h4 {[%clk 0:00:13]} 40. Bd4 {[%clk 0:00:36]}  hxg3+ {[%clk 0:00:12]} 41. Nxg3 {[%clk 0:00:36]}  Bf4 {[%clk 0:00:10]} 42. Qf3 {[%clk 0:00:36]}  Qd6 {[%clk 0:00:09]} 43. b4 {[%clk 0:00:35]}  Qc7 {[%clk 0:00:08]} 44. b5 {[%clk 0:00:35]}  e5 {[%clk 0:00:08]} 45. b6 {[%clk 0:00:34]}  Qb8 {[%clk 0:00:07]} 46. Be3 {[%clk 0:00:33]}  g5 {[%clk 0:00:04]} 47. Kg1 {[%clk 0:00:30]}  Qd6 {[%clk 0:00:03]} 48. Ne4 {[%clk 0:00:29]}  Qd3 {[%clk 0:00:02]} 49. Bxf4 {[%clk 0:00:26]}  Qb1+ {[%clk 0:00:02]} 50. Kh2 {[%clk 0:00:26]}  gxf4 {[%clk 0:00:02]} 51. Qh5+ {[%clk 0:00:24]}  Kg7 {[%clk 0:00:02]} 52. Qxe5+ {[%clk 0:00:24]}  Kg6 {[%clk 0:00:02]} 53. Qf6+ {[%clk 0:00:24]}  Kh7 {[%clk 0:00:02]} 54. Ng5+ {[%clk 0:00:23]}  Kg8 {[%clk 0:00:02]} 55. Qf7+ {[%clk 0:00:24]}  Kh8 {[%clk 0:00:03]} 56. Qf8# {[%clk 0:00:24]} 1-0


[Site "https://www.chess.com"]

[Event "Titled Tuesday Blitz May 9 Late 2023"]
[White "Yeritsyan, Hayk"]
[Black "Fuzesabonyilaci"]
[WhiteFideId "13307320"]
[WhiteElo "2488"]
[BlackElo "2304"]
[Result "0-1"]
[Round "02"]
[TimeControl "180+2"]
[Date "2023.05.09"]
[WhiteClock "0:00:11"]
[BlackClock "0:00:12"]

1. d4 {[%clk 0:03:00]}  d5 {[%clk 0:02:59]} 2. Nf3 {[%clk 0:02:59]}  Nf6 {[%clk 0:02:52]} 3. e3 {[%clk 0:02:59]}  g6 {[%clk 0:02:44]} 4. Bd3 {[%clk 0:02:56]}  Bg7 {[%clk 0:02:45]} 5. O-O {[%clk 0:02:56]}  O-O {[%clk 0:02:46]} 6. Nbd2 {[%clk 0:02:56]}  b6 {[%clk 0:02:46]} 7. e4 {[%clk 0:02:55]}  dxe4 {[%clk 0:02:44]} 8. Nxe4 {[%clk 0:02:56]}  Bb7 {[%clk 0:02:45]} 9. Qe2 {[%clk 0:02:54]}  Nbd7 {[%clk 0:02:41]} 10. c3 {[%clk 0:02:53]}  Re8 {[%clk 0:02:22]} 11. h3 {[%clk 0:02:48]}  e5 {[%clk 0:02:20]} 12. Nxf6+ {[%clk 0:02:47]}  Bxf6 {[%clk 0:02:19]} 13. dxe5 {[%clk 0:02:47]}  Nxe5 {[%clk 0:02:19]} 14. Nxe5 {[%clk 0:02:47]}  Bxe5 {[%clk 0:02:15]} 15. Qc2 {[%clk 0:02:44]}  Qd5 {[%clk 0:02:06]} 16. f3 {[%clk 0:02:21]}  Rad8 {[%clk 0:01:47]} 17. Be4 {[%clk 0:01:39]}  Qc5+ {[%clk 0:01:47]} 18. Qf2 {[%clk 0:01:39]}  Qxf2+ {[%clk 0:01:33]} 19. Kxf2 {[%clk 0:01:39]}  Bxe4 {[%clk 0:01:32]} 20. fxe4 {[%clk 0:01:40]}  Rd3 {[%clk 0:01:32]} 21. Be3 {[%clk 0:00:37]}  Bd6 {[%clk 0:01:28]} 22. Ke2 {[%clk 0:00:33]}  Rxe3+ {[%clk 0:01:19]} 23. Kxe3 {[%clk 0:00:34]}  f5 {[%clk 0:01:19]} 24. Kf3 {[%clk 0:00:26]}  fxe4+ {[%clk 0:01:17]} 25. Ke2 {[%clk 0:00:26]}  g5 {[%clk 0:01:10]} 26. Rf5 {[%clk 0:00:25]}  h6 {[%clk 0:01:05]} 27. Rh1 {[%clk 0:00:20]}  Kg7 {[%clk 0:00:58]} 28. h4 {[%clk 0:00:20]}  Bf4 {[%clk 0:00:47]} 29. hxg5 {[%clk 0:00:20]}  hxg5 {[%clk 0:00:48]} 30. g4 {[%clk 0:00:20]}  Rd8 {[%clk 0:00:41]} 31. Rd1 {[%clk 0:00:17]}  Rh8 {[%clk 0:00:39]} 32. Rd7+ {[%clk 0:00:17]}  Kg8 {[%clk 0:00:23]} 33. Rd8+ {[%clk 0:00:17]}  Kg7 {[%clk 0:00:23]} 34. Rxh8 {[%clk 0:00:17]}  Kxh8 {[%clk 0:00:24]} 35. Rf7 {[%clk 0:00:15]}  Kg8 {[%clk 0:00:23]} 36. Rd7 {[%clk 0:00:15]}  Kf8 {[%clk 0:00:21]} 37. c4 {[%clk 0:00:16]}  a5 {[%clk 0:00:19]} 38. b3 {[%clk 0:00:15]}  Ke8 {[%clk 0:00:18]} 39. Rh7 {[%clk 0:00:15]}  Kd8 {[%clk 0:00:18]} 40. Ke1 {[%clk 0:00:14]}  Kc8 {[%clk 0:00:17]} 41. Ke2 {[%clk 0:00:14]}  Kb7 {[%clk 0:00:17]} 42. a3 {[%clk 0:00:15]}  Kc6 {[%clk 0:00:17]} 43. b4 {[%clk 0:00:15]}  a4 {[%clk 0:00:16]} 44. Rf7 {[%clk 0:00:13]}  Bc1 {[%clk 0:00:16]} 45. Rf6+ {[%clk 0:00:11]}  Kd7 {[%clk 0:00:15]} 46. Rf5 {[%clk 0:00:08]}  Ke6 {[%clk 0:00:11]} 47. b5 {[%clk 0:00:05]}  Bxa3 {[%clk 0:00:10]} 48. Rxg5 {[%clk 0:00:05]}  Bc1 {[%clk 0:00:09]} 49. Rh5 {[%clk 0:00:06]}  a3 {[%clk 0:00:09]} 50. Rh1 {[%clk 0:00:06]}  Bb2 {[%clk 0:00:10]} 51. Ke3 {[%clk 0:00:05]}  a2 {[%clk 0:00:10]} 52. Kxe4 {[%clk 0:00:06]}  a1=Q {[%clk 0:00:10]} 53. Rxa1 {[%clk 0:00:06]}  Bxa1 {[%clk 0:00:11]} 54. g5 {[%clk 0:00:07]}  Bg7 {[%clk 0:00:10]} 55. g6 {[%clk 0:00:07]}  Kd6 {[%clk 0:00:11]} 56. Kf5 {[%clk 0:00:07]}  Kc5 {[%clk 0:00:11]} 57. Ke6 {[%clk 0:00:08]}  Kxc4 {[%clk 0:00:11]} 58. Kd7 {[%clk 0:00:08]}  Kxb5 {[%clk 0:00:11]} 59. Kxc7 {[%clk 0:00:09]}  Kc5 {[%clk 0:00:11]} 60. Kd7 {[%clk 0:00:10]}  b5 {[%clk 0:00:12]} 61. Ke7 {[%clk 0:00:10]}  b4 {[%clk 0:00:12]} 62. Kf7 {[%clk 0:00:11]}  Bd4 {[%clk 0:00:12]} 63. Ke6 {[%clk 0:00:12]}  b3 {[%clk 0:00:12]} 64. Kf5 {[%clk 0:00:13]}  b2 {[%clk 0:00:12]} 65. Ke4 {[%clk 0:00:11]}  b1=Q+ {[%clk 0:00:12]} 0-1


[Site "https://www.chess.com"]

[Event "Titled Tuesday Blitz May 9 Late 2023"]
[White "Kopacz, Grzegorz"]
[Black "Moral Garcia, Serafin"]
[WhiteFideId "1109880"]
[BlackFideId "2201925"]
[WhiteElo "2037"]
[BlackElo "2274"]
[Result "0-1"]
[Round "02"]
[TimeControl "180+2"]
[Date "2023.05.09"]
[WhiteClock "0:00:16"]
[BlackClock "0:00:30"]

1. d4 {[%clk 0:03:00]}  Nf6 {[%clk 0:02:59]} 2. c4 {[%clk 0:02:59]}  g6 {[%clk 0:02:59]} 3. Nc3 {[%clk 0:02:59]}  d5 {[%clk 0:02:59]} 4. cxd5 {[%clk 0:02:57]}  Nxd5 {[%clk 0:03:00]} 5. Na4 {[%clk 0:02:55]}  Bg7 {[%clk 0:02:58]} 6. e4 {[%clk 0:02:47]}  Nb6 {[%clk 0:02:57]} 7. Nxb6 {[%clk 0:02:47]}  axb6 {[%clk 0:02:57]} 8. Be3 {[%clk 0:02:47]}  Nc6 {[%clk 0:02:49]} 9. Bb5 {[%clk 0:02:42]}  O-O {[%clk 0:02:48]} 10. Ne2 {[%clk 0:02:41]}  f5 {[%clk 0:02:43]} 11. e5 {[%clk 0:02:36]}  Be6 {[%clk 0:02:30]} 12. O-O {[%clk 0:02:34]}  Nb4 {[%clk 0:02:28]} 13. Nc3 {[%clk 0:02:29]}  Nd5 {[%clk 0:02:28]} 14. Nxd5 {[%clk 0:02:27]}  Bxd5 {[%clk 0:02:28]} 15. f4 {[%clk 0:02:21]}  c6 {[%clk 0:02:28]} 16. Bd3 {[%clk 0:02:20]}  e6 {[%clk 0:02:28]} 17. a3 {[%clk 0:02:19]}  Rf7 {[%clk 0:02:28]} 18. Qc2 {[%clk 0:02:16]}  Rd7 {[%clk 0:02:27]} 19. b4 {[%clk 0:02:16]}  b5 {[%clk 0:02:24]} 20. h3 {[%clk 0:02:07]}  Bf8 {[%clk 0:02:23]} 21. Qf2 {[%clk 0:02:06]}  Qe8 {[%clk 0:02:17]} 22. g4 {[%clk 0:02:04]}  Be7 {[%clk 0:02:17]} 23. gxf5 {[%clk 0:02:02]}  gxf5 {[%clk 0:02:17]} 24. Kh2 {[%clk 0:02:02]}  Kh8 {[%clk 0:02:16]} 25. Rg1 {[%clk 0:01:57]}  Qf7 {[%clk 0:02:12]} 26. Be2 {[%clk 0:01:41]}  Bd8 {[%clk 0:02:09]} 27. Rg3 {[%clk 0:01:36]}  Bb6 {[%clk 0:02:05]} 28. Rag1 {[%clk 0:01:28]}  Rxa3 {[%clk 0:02:02]} 29. Bh5 {[%clk 0:01:27]}  Qf8 {[%clk 0:01:57]} 30. Bf3 {[%clk 0:01:10]}  Ra2 {[%clk 0:01:52]} 31. Be2 {[%clk 0:01:08]}  Be4 {[%clk 0:01:41]} 32. Rg5 {[%clk 0:00:57]}  Ra8 {[%clk 0:01:35]} 33. Qg3 {[%clk 0:00:54]}  Re8 {[%clk 0:01:03]} 34. Rh5 {[%clk 0:00:53]}  Rg7 {[%clk 0:01:01]} 35. Qh4 {[%clk 0:00:52]}  Bd8 {[%clk 0:00:54]} 36. Rgg5 {[%clk 0:00:33]}  Bxg5 {[%clk 0:00:53]} 37. fxg5 {[%clk 0:00:33]}  Qf7 {[%clk 0:00:52]} 38. Bf4 {[%clk 0:00:33]}  Rg6 {[%clk 0:00:50]} 39. Rh6 {[%clk 0:00:29]}  Ra8 {[%clk 0:00:49]} 40. Bh5 {[%clk 0:00:25]}  Rxh6 {[%clk 0:00:48]} 41. gxh6 {[%clk 0:00:24]}  Ra2+ {[%clk 0:00:44]} 42. Kg1 {[%clk 0:00:22]}  Qf8 {[%clk 0:00:38]} 43. Bg5 {[%clk 0:00:20]}  Rg2+ {[%clk 0:00:38]} 44. Kf1 {[%clk 0:00:20]}  Qxb4 {[%clk 0:00:36]} 45. Bf6+ {[%clk 0:00:17]}  Kg8 {[%clk 0:00:36]} 46. Bf7+ {[%clk 0:00:17]}  Kxf7 {[%clk 0:00:36]} 47. Qh5+ {[%clk 0:00:17]}  Kf8 {[%clk 0:00:36]} 48. Bg7+ {[%clk 0:00:17]}  Rxg7 {[%clk 0:00:35]} 49. hxg7+ {[%clk 0:00:18]}  Kxg7 {[%clk 0:00:35]} 50. Qg5+ {[%clk 0:00:18]}  Kf7 {[%clk 0:00:36]} 51. Qf6+ {[%clk 0:00:19]}  Ke8 {[%clk 0:00:35]} 52. Qxe6+ {[%clk 0:00:18]}  Qe7 {[%clk 0:00:35]} 53. Qc8+ {[%clk 0:00:18]}  Kf7 {[%clk 0:00:35]} 54. Qh8 {[%clk 0:00:17]}  Ke6 {[%clk 0:00:34]} 55. Qg8+ {[%clk 0:00:17]}  Qf7 {[%clk 0:00:33]} 56. Qc8+ {[%clk 0:00:17]}  Kd5 {[%clk 0:00:33]} 57. Qd8+ {[%clk 0:00:16]}  Kc4 {[%clk 0:00:34]} 58. Qd6 {[%clk 0:00:17]}  f4 {[%clk 0:00:33]} 59. e6 {[%clk 0:00:16]}  Qh5 {[%clk 0:00:32]} 60. Qc5+ {[%clk 0:00:15]}  Qxc5 {[%clk 0:00:31]} 61. dxc5 {[%clk 0:00:16]}  Kxc5 {[%clk 0:00:31]} 62. h4 {[%clk 0:00:15]}  Bg6 {[%clk 0:00:32]} 63. Kf2 {[%clk 0:00:16]}  Kd6 {[%clk 0:00:30]} 64. h5 {[%clk 0:00:16]}  Bxh5 {[%clk 0:00:30]} 65. e7 {[%clk 0:00:16]}  Kxe7 {[%clk 0:00:30]} 0-1


[Site "https://www.chess.com"]

[Event "Titled Tuesday Blitz May 9 Late 2023"]
[White "Jonkman, Harmen"]
[Black "SalihEke"]
[WhiteFideId "1002708"]
[WhiteElo "2368"]
[BlackElo "2298"]
[Result "1-0"]
[Round "02"]
[TimeControl "180+2"]
[Date "2023.05.09"]
[WhiteClock "0:00:16"]
[BlackClock "0:00:00"]

1. d4 {[%clk 0:02:56]}  Nf6 {[%clk 0:02:58]} 2. Nf3 {[%clk 0:02:55]}  e6 {[%clk 0:02:57]} 3. Bf4 {[%clk 0:02:55]}  c5 {[%clk 0:02:56]} 4. e3 {[%clk 0:02:55]}  Nc6 {[%clk 0:02:56]} 5. Nbd2 {[%clk 0:02:54]}  Be7 {[%clk 0:02:47]} 6. h3 {[%clk 0:02:54]}  O-O {[%clk 0:02:48]} 7. Bd3 {[%clk 0:02:54]}  b6 {[%clk 0:02:47]} 8. O-O {[%clk 0:02:53]}  Bb7 {[%clk 0:02:48]} 9. c3 {[%clk 0:02:52]}  d5 {[%clk 0:02:41]} 10. Ne5 {[%clk 0:02:48]}  Nxe5 {[%clk 0:02:38]} 11. dxe5 {[%clk 0:02:48]}  Ne4 {[%clk 0:02:38]} 12. Qc2 {[%clk 0:02:43]}  Nxd2 {[%clk 0:02:31]} 13. Qxd2 {[%clk 0:02:40]}  g6 {[%clk 0:02:16]} 14. Rad1 {[%clk 0:02:33]}  Bg5 {[%clk 0:02:11]} 15. Qe2 {[%clk 0:02:24]}  Bxf4 {[%clk 0:02:06]} 16. exf4 {[%clk 0:02:24]}  Qh4 {[%clk 0:02:05]} 17. Qd2 {[%clk 0:02:10]}  Rfd8 {[%clk 0:02:04]} 18. Kh2 {[%clk 0:02:07]}  a5 {[%clk 0:01:54]} 19. g3 {[%clk 0:02:03]}  Qe7 {[%clk 0:01:54]} 20. Rfe1 {[%clk 0:01:58]}  a4 {[%clk 0:01:49]} 21. Qe2 {[%clk 0:01:48]}  a3 {[%clk 0:01:47]} 22. b3 {[%clk 0:01:47]}  d4 {[%clk 0:01:44]} 23. c4 {[%clk 0:01:44]}  h5 {[%clk 0:01:39]} 24. Be4 {[%clk 0:01:42]}  Kg7 {[%clk 0:01:38]} 25. Rd3 {[%clk 0:01:40]}  Rab8 {[%clk 0:01:23]} 26. Qd2 {[%clk 0:01:28]}  Bxe4 {[%clk 0:01:19]} 27. Rxe4 {[%clk 0:01:28]}  Qb7 {[%clk 0:01:19]} 28. Re1 {[%clk 0:01:24]}  b5 {[%clk 0:01:19]} 29. cxb5 {[%clk 0:01:21]}  Qxb5 {[%clk 0:01:20]} 30. Rc1 {[%clk 0:01:21]}  Rd5 {[%clk 0:01:12]} 31. Rc4 {[%clk 0:01:20]}  Kg8 {[%clk 0:01:04]} 32. Qc1 {[%clk 0:01:19]}  Rbd8 {[%clk 0:00:59]} 33. Qxa3 {[%clk 0:01:17]}  Rb8 {[%clk 0:00:52]} 34. Qc1 {[%clk 0:01:17]}  Ra8 {[%clk 0:00:52]} 35. Qc2 {[%clk 0:01:15]}  Qa5 {[%clk 0:00:51]} 36. Ra4 {[%clk 0:01:11]}  Qd8 {[%clk 0:00:50]} 37. Rxa8 {[%clk 0:01:10]}  Qxa8 {[%clk 0:00:51]} 38. a4 {[%clk 0:01:10]}  Qc6 {[%clk 0:00:49]} 39. Qc4 {[%clk 0:01:08]}  Rd7 {[%clk 0:00:48]} 40. Kg1 {[%clk 0:00:55]}  Qe4 {[%clk 0:00:44]} 41. Qc2 {[%clk 0:00:48]}  Qe1+ {[%clk 0:00:42]} 42. Kg2 {[%clk 0:00:48]}  Qb4 {[%clk 0:00:42]} 43. Rd2 {[%clk 0:00:37]}  d3 {[%clk 0:00:26]} 44. Qb2 {[%clk 0:00:25]}  Qe4+ {[%clk 0:00:24]} 45. Kh2 {[%clk 0:00:25]}  c4 {[%clk 0:00:17]} 46. bxc4 {[%clk 0:00:23]}  Qxc4 {[%clk 0:00:18]} 47. a5 {[%clk 0:00:22]}  Kh7 {[%clk 0:00:13]} 48. Qa3 {[%clk 0:00:20]}  Qa6 {[%clk 0:00:05]} 49. Qb4 {[%clk 0:00:20]}  Rd5 {[%clk 0:00:05]} 50. Qc3 {[%clk 0:00:19]}  Rxa5 {[%clk 0:00:02]} 51. Qxd3 {[%clk 0:00:19]}  Qa7 {[%clk 0:00:02]} 52. Qd7 {[%clk 0:00:19]}  Kg7 {[%clk 0:00:02]} 53. Qxa7 {[%clk 0:00:18]}  Rxa7 {[%clk 0:00:02]} 54. Kg2 {[%clk 0:00:19]}  Ra3 {[%clk 0:00:03]} 55. Rd4 {[%clk 0:00:17]}  Ra2 {[%clk 0:00:02]} 56. Rd6 {[%clk 0:00:17]}  Ra4 {[%clk 0:00:02]} 57. Kf3 {[%clk 0:00:16]}  Ra3+ {[%clk 0:00:03]} 58. Kg2 {[%clk 0:00:17]}  Ra4 {[%clk 0:00:04]} 59. Rd3 {[%clk 0:00:17]}  Rb4 {[%clk 0:00:04]} 60. Re3 {[%clk 0:00:18]}  Ra4 {[%clk 0:00:05]} 61. Kf3 {[%clk 0:00:18]}  Rc4 {[%clk 0:00:05]} 62. g4 {[%clk 0:00:19]}  hxg4+ {[%clk 0:00:04]} 63. hxg4 {[%clk 0:00:19]}  Ra4 {[%clk 0:00:04]} 64. Re4 {[%clk 0:00:20]}  Ra3+ {[%clk 0:00:05]} 65. Re3 {[%clk 0:00:20]}  Ra4 {[%clk 0:00:05]} 66. Kg3 {[%clk 0:00:21]}  Ra5 {[%clk 0:00:06]} 67. Re4 {[%clk 0:00:21]}  Ra3+ {[%clk 0:00:06]} 68. f3 {[%clk 0:00:21]}  Ra1 {[%clk 0:00:06]} 69. Re2 {[%clk 0:00:19]}  Rg1+ {[%clk 0:00:07]} 70. Rg2 {[%clk 0:00:20]}  Ra1 {[%clk 0:00:07]} 71. f5 {[%clk 0:00:20]}  gxf5 {[%clk 0:00:04]} 72. gxf5 {[%clk 0:00:21]}  exf5 {[%clk 0:00:03]} 73. Kf4+ {[%clk 0:00:21]}  Kf8 {[%clk 0:00:04]} 74. Kxf5 {[%clk 0:00:21]}  Ke7 {[%clk 0:00:04]} 75. f4 {[%clk 0:00:21]}  Ra7 {[%clk 0:00:05]} 76. Rb2 {[%clk 0:00:21]}  Rc7 {[%clk 0:00:05]} 77. Rb6 {[%clk 0:00:21]}  Ra7 {[%clk 0:00:06]} 78. Rc6 {[%clk 0:00:21]}  Rd7 {[%clk 0:00:06]} 79. Ra6 {[%clk 0:00:21]}  Rb7 {[%clk 0:00:06]} 80. Kg5 {[%clk 0:00:22]}  Rc7 {[%clk 0:00:06]} 81. f5 {[%clk 0:00:22]}  Rb7 {[%clk 0:00:05]} 82. Kh6 {[%clk 0:00:19]}  Rb5 {[%clk 0:00:04]} 83. f6+ {[%clk 0:00:19]}  Ke8 {[%clk 0:00:04]} 84. Kg7 {[%clk 0:00:18]}  Rxe5 {[%clk 0:00:02]} 85. Ra8+ {[%clk 0:00:18]}  Kd7 {[%clk 0:00:01]} 86. Kxf7 {[%clk 0:00:19]}  Re1 {[%clk 0:00:02]} 87. Ra7+ {[%clk 0:00:17]}  Kd6 {[%clk 0:00:01]} 88. Kf8 {[%clk 0:00:15]}  Rf1 {[%clk 0:00:01]} 89. f7 {[%clk 0:00:16]}  Ke6 {[%clk 0:00:02]} 90. Ke8 {[%clk 0:00:15]}  Rb1 {[%clk 0:00:01]} 91. Ra6+ {[%clk 0:00:15]}  Kd5 {[%clk 0:00:01]} 92. f8=Q {[%clk 0:00:15]}  Rb8+ {[%clk 0:00:02]} 93. Kf7 {[%clk 0:00:15]}  Rxf8+ {[%clk 0:00:00]} 94. Kxf8 {[%clk 0:00:16]} 1-0


[Site "https://www.chess.com"]

[Event "Titled Tuesday Blitz May 9 Late 2023"]
[White "Khandelwal, Ankush"]
[Black "Rosenberg, Evan S"]
[WhiteFideId "413470"]
[BlackFideId "2019299"]
[WhiteElo "2263"]
[BlackElo "2292"]
[Result "1-0"]
[Round "02"]
[TimeControl "180+2"]
[Date "2023.05.09"]
[WhiteClock "0:00:18"]
[BlackClock "0:00:02"]

1. e4 {[%clk 0:03:00]}  e5 {[%clk 0:02:57]} 2. Nf3 {[%clk 0:02:58]}  Nc6 {[%clk 0:02:58]} 3. Bc4 {[%clk 0:02:57]}  Nf6 {[%clk 0:02:58]} 4. Ng5 {[%clk 0:02:52]}  d5 {[%clk 0:02:58]} 5. exd5 {[%clk 0:02:52]}  Na5 {[%clk 0:02:58]} 6. Bb5+ {[%clk 0:02:51]}  c6 {[%clk 0:02:58]} 7. dxc6 {[%clk 0:02:50]}  bxc6 {[%clk 0:02:59]} 8. Bd3 {[%clk 0:02:46]}  Nd5 {[%clk 0:02:58]} 9. Nf3 {[%clk 0:02:44]}  Bd6 {[%clk 0:02:59]} 10. O-O {[%clk 0:02:41]}  O-O {[%clk 0:03:00]} 11. Re1 {[%clk 0:02:32]}  f5 {[%clk 0:03:00]} 12. Nxe5 {[%clk 0:02:30]}  Qf6 {[%clk 0:03:01]} 13. Nf3 {[%clk 0:02:20]}  g5 {[%clk 0:03:00]} 14. c4 {[%clk 0:02:17]}  Nf4 {[%clk 0:02:54]} 15. Bf1 {[%clk 0:02:16]}  g4 {[%clk 0:02:51]} 16. d4 {[%clk 0:02:09]}  Kh8 {[%clk 0:02:22]} 17. Ne5 {[%clk 0:01:58]}  Ne6 {[%clk 0:02:06]} 18. Nc3 {[%clk 0:01:28]}  c5 {[%clk 0:01:55]} 19. Nb5 {[%clk 0:01:20]}  Bb8 {[%clk 0:01:45]} 20. b4 {[%clk 0:01:12]}  cxd4 {[%clk 0:01:35]} 21. bxa5 {[%clk 0:00:33]}  Bxe5 {[%clk 0:01:34]} 22. Bb2 {[%clk 0:00:33]}  a6 {[%clk 0:01:20]} 23. Rxe5 {[%clk 0:00:29]}  axb5 {[%clk 0:01:14]} 24. Rxe6 {[%clk 0:00:23]}  Qxe6 {[%clk 0:00:55]} 25. Qxd4+ {[%clk 0:00:21]}  Rf6 {[%clk 0:00:56]} 26. Re1 {[%clk 0:00:21]}  Qf7 {[%clk 0:00:37]} 27. Qxf6+ {[%clk 0:00:17]}  Qxf6 {[%clk 0:00:37]} 28. Bxf6+ {[%clk 0:00:17]}  Kg8 {[%clk 0:00:38]} 29. cxb5 {[%clk 0:00:18]}  Rxa5 {[%clk 0:00:37]} 30. Bc4+ {[%clk 0:00:18]}  Kf8 {[%clk 0:00:02]} 31. Rd1 {[%clk 0:00:18]} 1-0


[Site "https://www.chess.com"]